bitfinex/quotes_ETHUSD_20230702
["timestamp","ask_amount","ask_price","bid_price","bid_amount"]
[1688329296630,2.6,1916.6,1916.5,13.12320184]
[1688329296790,2.6,1916.6,1916.5,13.13973795]
[1688329296989,2.6,1916.6,1916.5,14.71461675]
[1688329305349,2.6,1916.6,1916.5,13.13973795]
[1688329326755,2.6,1916.6,1916.5,7.92189795]
[1688329330604,2.6,1916.6,1916.5,13.13973795]
[1688329330900,2.6,1916.6,1916.5,13.61973795]
[1688329337589,2.6,1916.6,1916.5,8.40189795]
[1688329339725,2.6,1916.6,1916.5,13.61973795]
[1688329346537,2.6,1916.6,1916.5,8.40189795]
[1688329346832,13.03514,1916.6,1916.2,5.21855]
[1688329347012,1.303514,1916.5,1916.2,2.68752184]
[1688329347197,6.521494,1916.5,1916.2,7.90616184]
[1688329347754,6.521494,1916.5,1916.2,13.12482184]
[1688329349848,1.303514,1916.5,1916.2,13.12482184]
[1688329354550,9.32227,1916.6,1916.2,13.12482184]
[1688329361453,14.53993,1916.6,1916.2,13.12482184]
[1688329361766,14.95432664,1916.6,1916.2,13.12482184]
[1688329371305,16.05840664,1916.6,1916.1,5.21877]
[1688329371601,10.43682,1916.3,1915.9,0.00558762]
[1688329371761,13.04601,1916.3,1915.8,5.0]
[1688329372491,10.4384,1916.0,1915.8,5.0]
[1688329372719,13.048,1916.0,1915.8,5.0]
[1688329372877,1.3048,1915.9,1915.4,6.9018]
[1688329373082,5.21979,1915.8,1915.5,2.68752184]
[1688329373923,14.06243,1915.9,1915.5,2.68752184]
[1688329374408,14.06243,1915.9,1915.5,7.90807184]
[1688329374787,14.06243,1915.9,1915.5,2.68752184]
[1688329375123,14.455733,1915.8,1915.2,1.044883]
[1688329375328,14.455733,1915.8,1915.3,1.5554]
[1688329375718,1.406243,1915.8,1915.4,2.68752184]
[1688329375925,1.406243,1915.8,1915.5,10.44104]
[1688329376831,6.626053,1915.8,1915.5,10.44104]
[1688329377432,6.626053,1915.8,1915.5,5.22051]
[1688329378246,6.626053,1915.8,1915.4,7.90820184]
[1688329378425,0.6626053,1915.7,1915.4,2.68752184]
[1688329378736,10.44058,1915.6,1915.4,2.68752184]
[1688329379086,5.22029,1915.6,1915.4,2.68752184]
[1688329380127,5.22029,1915.6,1915.4,7.90833184]
[1688329381594,5.8826553,1915.7,1915.4,13.12917184]
[1688329382390,11.1026753,1915.7,1915.4,7.90833184]
[1688329387097,10.44007,1915.7,1915.4,7.90833184]
[1688329389250,10.44007,1915.7,1915.4,13.12917184]
[1688329391416,4.53600427,1915.8,1915.4,2.68752184]
[1688329391757,10.44004,1915.7,1915.4,7.90836184]
[1688329394549,10.44004,1915.7,1915.4,13.12920184]
[1688329396923,3.02040427,1915.8,1915.4,13.12920184]
[1688329397126,2.6,1915.8,1915.4,18.43178867]
[1688329397418,7.81977,1915.8,1915.4,18.43178867]
[1688329400811,13.03954,1915.8,1915.4,18.43178867]
[1688329404036,13.03954,1915.8,1915.4,17.47078867]
[1688329407251,13.03954,1915.8,1915.4,15.73962184]
[1688329407456,13.03954,1915.8,1915.4,13.12920184]
[1688329411372,2.6,1915.8,1915.6,13.05072]
[1688329411572,2.6,1915.8,1915.6,15.73824184]
[1688329412738,2.6,1915.8,1915.6,16.69724184]
[1688329413061,2.6,1915.8,1915.6,18.57726602]
[1688329413760,2.6,1915.8,1915.7,2.68752184]
[1688329413923,2.6,1915.8,1915.7,15.73757184]
[1688329417266,2.6,1915.8,1915.7,17.17457184]
[1688329417854,2.6,1915.8,1915.7,22.17457184]
[1688329418056,2.6,1915.8,1915.7,24.84269483]
[1688329431895,2.6,1915.8,1915.7,19.84269483]
[1688329432812,2.6,1915.8,1915.7,24.84269483]
[1688329433805,2.6,1915.8,1915.7,19.84269483]
[1688329437106,2.6,1915.8,1915.7,18.88569483]
[1688329438717,2.6,1915.8,1915.7,19.15343454]
[1688329438875,2.6,1915.8,1915.7,24.15343454]
[1688329439078,2.6,1915.8,1915.7,25.11343454]
[1688329440699,2.6,1915.8,1915.7,20.11343454]
[1688329451853,2.6,1915.8,1915.7,25.11343454]
[1688329452854,2.6,1915.8,1915.7,20.11343454]
[1688329454062,2.6,1915.8,1915.7,19.15343454]
[1688329455778,2.6,1915.8,1915.7,24.15343454]
[1688329463287,2.6,1915.8,1915.7,25.06055324]
[1688329467682,2.6,1915.8,1915.7,24.15343454]
[1688329467853,2.6,1915.8,1915.7,19.15343454]
[1688329468783,2.6,1915.8,1915.7,15.73757184]
[1688329470298,2.6,1915.8,1915.7,16.21757184]
[1688329483711,2.6,1915.8,1915.7,21.21757184]
[1688329489941,2.6,1915.8,1915.7,16.21757184]
[1688329496925,2.6,1915.8,1915.7,21.21757184]
[1688329498859,2.6,1915.8,1915.7,23.60199241]
[1688329500066,2.6,1915.8,1915.7,24.50912289]
[1688329500357,2.6,1915.8,1915.7,24.50912301]
[1688329500856,2.6,1915.8,1915.7,23.60199241]
[1688329501058,2.6,1915.8,1915.7,24.50912097]
[1688329501567,2.6,1915.8,1915.7,28.82201241]
[1688329504859,2.6,1915.8,1915.7,23.60199241]
[1688329505064,2.6,1915.8,1915.7,21.21757184]
[1688329505762,2.6,1915.8,1915.7,16.21757184]
[1688329509779,2.6,1915.8,1915.7,16.62754203]
[1688329516085,2.6,1915.8,1915.7,16.21757184]
[1688329525495,2.6,1915.8,1915.7,7.90754184]
[1688329525693,2.6,1915.8,1915.6,5.22009]
[1688329525900,2.6,1915.8,1915.6,7.90761184]
[1688329526102,2.9559,1915.8,1915.6,7.90761184]
[1688329526297,2.9559,1915.8,1915.6,13.12790184]
[1688329526972,2.9559,1915.8,1915.6,7.90761184]
[1688329527371,2.9559,1915.8,1915.6,13.12790184]
[1688329527772,2.9559,1915.8,1915.6,15.73804184]
[1688329533285,2.6,1915.8,1915.6,15.73804184]
[1688329533502,3.561,1915.8,1915.6,13.05052]
[1688329533824,3.561,1915.8,1915.6,10.44038]
[1688329536092,0.961,1915.7,1915.6,10.44038]
[1688329536627,0.961,1915.7,1915.6,5.22009]
[1688329536818,1.3171,1915.7,1915.6,5.22009]
[1688329537518,1.3171,1915.7,1915.5,10.44089]
[1688329537816,1.3171,1915.7,1915.5,10.441]
[1688329538025,1.3171,1915.7,1915.4,2.61036]
[1688329538231,0.961,1915.6,1915.5,5.22056]
[1688329538631,0.961,1915.6,1915.5,10.44112]
[1688329538932,0.961,1915.6,1915.5,13.0514]
[1688329539116,1.3171,1915.7,1915.5,13.0514]
[1688329542240,1.3171,1915.7,1915.5,5.22056]
[1688329542440,1.3171,1915.7,1915.5,13.0514]
[1688329556763,0.961,1915.7,1915.5,13.0514]
[1688329557453,11.62238,1915.8,1915.5,13.0514]
[1688329558363,10.11678,1915.8,1915.5,13.0514]
[1688329564239,4.897,1915.8,1915.6,2.68752184]
[1688329564439,2.6,1915.8,1915.7,13.05005]
[1688329564740,2.6,1915.8,1915.7,14.62380718]
[1688329586887,2.6,1915.8,1915.7,19.4372208]
[1688329587172,2.6,1915.8,1915.7,19.01006873]
[1688329590862,2.6,1915.8,1915.7,24.01006873]
[1688329598789,2.6,1915.8,1915.7,23.05906873]
[1688329632008,2.6,1915.8,1915.7,23.96618553]
[1688329632210,2.6,1915.8,1915.7,25.32686074]
[1688329648226,2.2511,1916.0,1915.7,25.32686074]
[1688329648408,2.2511,1916.0,1915.8,3.16752184]
[1688329648608,2.2511,1916.0,1915.9,13.04867]
[1688329648793,0.961,1916.3,1915.9,15.73619184]
[1688329648994,3.2827,1916.3,1916.0,2.68752184]
[1688329649314,3.2827,1916.3,1916.1,13.04732]
[1688329649625,0.32827,1916.2,1916.1,13.04732]
[1688329653789,6.50793,1916.2,1916.0,5.21906]
[1688329653995,6.50793,1916.2,1916.0,10.43826]
[1688329656633,0.961,1916.1,1915.9,5.21934]
[1688329656944,0.961,1916.1,1915.7,2.60997]
[1688329656945,0.952,1916.0,1915.6,10.2201]
[1688329657145,5.21927,1916.0,1915.6,18.12791184]
[1688329657367,0.521927,1915.9,1915.7,0.00527461]
[1688329657689,0.961,1915.8,1915.7,5.21983]
[1688329658166,0.961,1915.8,1915.7,10.43985]
[1688329658750,0.961,1915.8,1915.7,13.04986]
[1688329659654,0.952,1915.9,1915.7,13.04986]
[1688329676444,2.6,1916.0,1915.8,2.68752184]
[1688329676598,2.6,1916.0,1915.9,13.04867]
[1688329680564,3.982,1916.0,1915.9,13.04867]
[1688329701258,3.982,1916.0,1915.9,10.43894]
[1688329708015,9.2012,1916.0,1915.8,5.21965]
[1688329708220,0.3982,1915.9,1915.8,5.21965]
[1688329708529,9.2012,1916.0,1915.8,10.4394]
[1688329712724,3.982,1916.0,1915.8,10.4394]
[1688329714979,4.1191788,1916.0,1915.8,10.4394]
[1688329774010,9.3384188,1916.0,1915.8,5.21965]
[1688329774620,9.3384188,1916.0,1915.8,10.4394]
[1688329775232,11.2415978,1916.0,1915.8,10.4394]
[1688329775739,11.2415978,1916.0,1915.8,5.21965]
[1688329776545,6.0223578,1916.0,1915.8,5.21965]
[1688329778354,6.0223578,1916.0,1915.8,10.4394]
[1688329779454,6.0223578,1916.0,1915.8,5.21965]
[1688329781156,6.0223578,1916.0,1915.8,10.4394]
[1688329781372,4.1191788,1916.0,1915.8,10.4394]
[1688329784255,4.1191788,1916.0,1915.8,15.73679184]
[1688329784457,4.1191788,1916.0,1915.9,2.68752184]
[1688329784668,4.1191788,1916.0,1915.9,15.73619184]
[1688329846054,4.1191788,1916.0,1915.8,0.01654215]
[1688329846308,4.1191788,1916.0,1915.9,5.21947]
[1688329848305,4.1191788,1916.0,1915.9,10.43894]
[1688329883228,4.1191788,1916.0,1915.9,13.04867]
[1688329884598,4.1191788,1916.0,1915.9,15.73619184]
[1688329886611,4.1191788,1916.0,1915.9,16.21619184]
[1688329887129,4.1191788,1916.0,1915.9,18.10044624]
[1688329899437,4.1191788,1916.0,1915.9,23.77912963]
[1688329899842,4.1191788,1916.0,1915.9,30.13984964]
[1688329900043,4.1191788,1916.0,1915.9,29.59292553]
[1688329901834,4.1191788,1916.0,1915.9,29.32518582]
[1688329902345,4.1191788,1916.0,1915.9,29.59292553]
[1688329903763,4.1191788,1916.0,1915.9,28.23220552]
[1688329910072,4.1191788,1916.0,1915.9,28.23211881]
[1688329910892,4.1191788,1916.0,1915.9,28.65849591]
[1688329911928,4.1191788,1916.0,1915.9,27.75156305]
[1688329918954,4.1191788,1916.0,1915.9,28.65847136]
[1688329920058,0.0321821,1916.4,1915.9,28.65847136]
[1688329920258,0.0321821,1916.4,1916.0,8.96800869]
[1688329920554,0.0321821,1916.4,1916.1,20.87547]
[1688329920748,0.0321821,1916.4,1916.3,15.65514]
[1688329920930,0.0321821,1916.4,1916.3,18.82266184]
[1688329973967,0.0321821,1916.4,1916.3,16.21347184]
[1688329994778,0.0321821,1916.4,1916.3,18.75478502]
[1688330004887,0.0321821,1916.4,1916.3,23.75478502]
[1688330007895,0.0321821,1916.4,1916.3,18.75478502]
[1688330009100,0.0321821,1916.4,1916.3,16.21347184]
[1688330036834,0.0321821,1916.4,1916.3,21.21347184]
[1688330039363,0.0321821,1916.4,1916.3,18.60428184]
[1688330040042,0.0321821,1916.4,1916.3,12.90590184]
[1688330040424,0.0321821,1916.4,1916.3,18.12428184]
[1688330040951,0.0321821,1916.4,1916.3,13.12428184]
[1688330048058,0.0321821,1916.4,1916.3,15.73347184]
[1688330053743,0.0321821,1916.4,1916.3,16.21347184]
[1688330053943,0.0321821,1916.4,1916.3,18.09316552]
[1688330056473,0.0321821,1916.4,1916.3,16.21088634]
[1688330104313,0.0321821,1916.4,1916.3,17.11771565]
[1688330105132,0.0321821,1916.4,1916.3,17.38545536]
[1688330105726,0.0321821,1916.4,1916.3,17.11771565]
[1688330105939,0.0321821,1916.4,1916.3,22.11771565]
[1688330106126,0.0321821,1916.4,1916.3,25.43208163]
[1688330108158,0.0321821,1916.4,1916.3,25.44861948]
[1688330117963,0.0321821,1916.4,1916.3,20.44861948]
[1688330118868,0.0321821,1916.4,1916.3,25.44861948]
[1688330121454,0.0321821,1916.4,1916.3,27.76083685]
[1688330121658,0.0321821,1916.4,1916.3,28.02857656]
[1688330122467,0.0321821,1916.4,1916.3,28.57550067]
[1688330124303,0.0321821,1916.4,1916.3,28.30776096]
[1688330127993,0.0321821,1916.4,1916.3,28.57550067]
[1688330130553,0.0321821,1916.4,1916.3,28.30776096]
[1688330130964,0.0321821,1916.4,1916.3,28.57550067]
[1688330131759,0.0321821,1916.4,1916.3,28.99363149]
[1688330132767,0.03665385,1916.4,1916.3,28.99363149]
[1688330133697,0.0321821,1916.4,1916.3,28.99363149]
[1688330135101,0.0321821,1916.4,1916.3,27.22696767]
[1688330135300,0.0321821,1916.4,1916.3,23.91260169]
[1688330135598,0.0321821,1916.4,1916.3,22.55238432]
[1688330135798,0.03665385,1916.4,1916.3,22.55238432]
[1688330136004,0.03665385,1916.4,1916.3,17.55238432]
[1688330137798,0.03665385,1916.4,1916.3,22.55238432]
[1688330138003,0.03665385,1916.4,1916.3,27.64132627]
[1688330144120,0.03665385,1916.4,1916.3,29.41699009]
[1688330159346,0.03665385,1916.4,1916.3,28.45599009]
[1688330161328,0.03665385,1916.4,1916.3,28.18825038]
[1688330166156,0.03665385,1916.4,1916.3,29.0104837]
[1688330166315,0.03665385,1916.4,1916.3,28.46355959]
[1688330166916,0.03665385,1916.4,1916.3,28.7312993]
[1688330180039,0.03665385,1916.4,1916.3,36.72029929]
[1688330180246,30.66,1917.2,1916.3,48.30046334]
[1688330180441,3.852,1916.9,1916.7,2.68752184]
[1688330180826,0.00424635,1917.1,1916.8,16.13069]
[1688330180939,0.00424635,1917.1,1916.9,2.68752184]
[1688330181135,0.00424635,1917.1,1917.0,13.0412]
[1688330181335,0.00424635,1917.1,1917.0,15.72872184]
[1688330181665,5.04118074,1917.2,1917.0,16.20872184]
[1688330181865,3.01829881,1917.2,1917.1,3.16752184]
[1688330182171,3.43714429,1917.2,1917.1,16.20804184]
[1688330182368,1.16114429,1917.2,1917.1,16.20804184]
[1688330182538,0.64702622,1917.2,1917.1,16.20804184]
[1688330182738,0.65128178,1917.2,1917.1,16.20804184]
[1688330184571,0.52310104,1917.2,1917.1,16.20804184]
[1688330201103,0.10425556,1917.2,1917.1,16.20804184]
[1688330206910,0.10425556,1917.2,1917.1,21.20804184]
[1688330214120,0.10425556,1917.2,1917.1,23.09229624]
[1688330221199,0.10425556,1917.2,1917.1,24.05129624]
[1688330222414,0.10425556,1917.2,1917.1,35.0739349]
[1688330222617,0.1,1917.3,1917.1,35.0739349]
[1688330222797,0.1,1917.3,1917.2,1.86732513]
[1688330222997,0.1,1917.3,1917.2,21.49168624]
[1688330223249,0.1,1917.3,1917.2,20.58536111]
[1688330223448,0.1,1917.4,1917.3,0.01657183]
[1688330223599,0.1,1917.4,1917.3,14.39272183]
[1688330223804,0.1,1917.4,1917.3,17.39272183]
[1688330224055,0.1,1917.4,1917.3,20.70442714]
[1688330224747,0.10370482,1917.4,1917.3,20.70442714]
[1688330224951,0.10370482,1917.4,1917.3,25.70442714]
[1688330225451,0.10370482,1917.4,1917.3,35.7007868]
[1688330225610,0.1,1917.8,1917.3,38.7737283]
[1688330225810,0.1,1917.8,1917.6,3.64452184]
[1688330226062,0.1,1917.8,1917.6,24.98391184]
[1688330226347,0.1,1917.8,1917.7,0.01387861]
[1688330226530,0.1,1917.8,1917.7,19.20394184]
[1688330226739,0.1034361,1917.8,1917.7,19.21782045]
[1688330227047,0.1034361,1917.8,1917.7,26.10207485]
[1688330227259,0.1034361,1917.8,1917.7,27.05907485]
[1688330234530,0.1034361,1917.8,1917.7,26.10207485]
[1688330235127,0.1034361,1917.8,1917.7,28.70207485]
[1688330236222,0.1034361,1917.8,1917.7,29.11766648]
[1688330237535,0.1034361,1917.8,1917.7,23.33782045]
[1688330237996,0.1034361,1917.8,1917.7,20.73054045]
[1688330238148,0.1034361,1917.8,1917.7,15.51597045]
[1688330238342,0.1034361,1917.8,1917.7,15.50209184]
[1688330238545,0.1034361,1917.8,1917.7,23.32394184]
[1688330238843,0.1034361,1917.8,1917.7,15.71666184]
[1688330239952,0.1034361,1917.8,1917.7,20.71666184]
[1688330240183,0.1034361,1917.8,1917.7,21.19666184]
[1688330240347,0.1034361,1917.8,1917.7,20.71666184]
[1688330240747,0.1034361,1917.8,1917.7,18.03737952]
[1688330240969,0.1034361,1917.8,1917.7,13.03737952]
[1688330241478,0.1034361,1917.8,1917.7,13.02914]
[1688330241775,0.1034361,1917.8,1917.7,13.04301861]
[1688330242274,0.1034361,1917.8,1917.7,13.02914]
[1688330242576,0.1034361,1917.8,1917.7,13.03483082]
[1688330242783,0.0534361,1917.8,1917.7,13.02914]
[1688330243286,0.0534361,1917.8,1917.7,15.63642]
[1688330244378,0.0534361,1917.8,1917.7,15.64625377]
[1688330244764,0.0534361,1917.8,1917.7,15.63642]
[1688330245284,0.0534361,1917.8,1917.7,15.64674468]
[1688330245461,0.0534361,1917.8,1917.7,15.63642]
[1688330245847,1.0094361,1917.8,1917.7,15.63642]
[1688330246042,1.0094361,1917.8,1917.7,15.64315579]
[1688330246283,1.0094361,1917.8,1917.7,15.63642]
[1688330246487,0.0534361,1917.8,1917.7,15.63642]
[1688330246855,0.0534361,1917.8,1917.7,20.63642]
[1688330251481,0.0534361,1917.8,1917.7,23.32394184]
[1688330251679,0.0534361,1917.8,1917.7,23.80394184]
[1688330254769,0.0534361,1917.8,1917.7,26.96655102]
[1688330272298,0.0534361,1917.8,1917.7,23.80394184]
[1688330275810,0.0034361,1917.8,1917.7,23.80394184]
[1688330276780,0.1,1917.9,1917.7,23.80394184]
[1688330277100,0.1,1917.9,1917.8,3.16752184]
[1688330277409,0.1,1917.9,1917.8,16.20327184]
[1688330277709,0.10344531,1917.9,1917.8,16.20327184]
[1688330277883,0.10344531,1917.9,1917.8,16.41198584]
[1688330279016,0.10344531,1917.9,1917.8,21.41198584]
[1688330281016,0.05344531,1917.9,1917.8,21.41198584]
[1688330285097,0.00344531,1917.9,1917.8,21.41198584]
[1688330290400,0.05344531,1918.0,1917.8,21.41198584]
[1688330290600,0.05344531,1918.0,1917.8,21.36198584]
[1688330290803,0.00331279,1917.9,1917.8,21.36198584]
[1688330344023,0.00331279,1917.9,1917.8,18.244464]
[1688330344229,0.00331279,1917.9,1917.8,18.03575]
[1688330346622,0.00331279,1917.9,1917.8,20.72327184]
[1688330346839,0.00331279,1917.9,1917.8,23.81720042]
[1688330348224,0.00331279,1917.9,1917.8,21.20327184]
[1688330357254,0.00331279,1917.9,1917.8,26.73622856]
[1688330365239,0.00331279,1917.9,1917.8,25.37709836]
[1688330367886,0.00331279,1917.9,1917.8,24.20327184]
[1688330369496,0.00331279,1917.9,1917.8,21.03575]
[1688330369695,0.00331279,1917.9,1917.8,18.03575]
[1688330392261,0.00331279,1917.9,1917.8,20.72327184]
[1688330392462,0.00331279,1917.9,1917.8,21.20327184]
[1688330394139,0.00331279,1917.9,1917.8,24.38665042]
[1688330394341,0.00331279,1917.9,1917.8,24.65439013]
[1688330397292,0.00331279,1917.9,1917.8,24.38665042]
[1688330403566,0.00331279,1917.9,1917.8,25.33865042]
[1688330404316,0.00331279,1917.9,1917.8,24.38665042]
[1688330407566,0.00331279,1917.9,1917.8,28.62791503]
[1688330409200,0.00331279,1917.9,1917.8,29.53399316]
[1688330409376,0.00331279,1917.9,1917.8,28.62791503]
[1688330409769,0.00331279,1917.9,1917.8,29.53399324]
[1688330412278,0.00331279,1917.9,1917.8,35.02299324]
[1688330412465,0.00331279,1917.9,1917.8,30.8930713]
[1688330412672,0.00331279,1917.9,1917.8,31.44013486]
[1688330413732,0.00331279,1917.9,1917.8,30.8930713]
[1688330413996,0.00331279,1917.9,1917.8,31.44013486]
[1688330414407,0.00331279,1917.9,1917.8,30.8930713]
[1688330415874,0.00331279,1917.9,1917.8,30.62533159]
[1688330416611,0.00331279,1917.9,1917.8,30.8930713]
[1688330417813,0.00331279,1917.9,1917.8,31.31937634]
[1688330419087,0.00331279,1917.9,1917.8,31.05163663]
[1688330424093,0.00331279,1917.9,1917.8,28.78648036]
[1688330430143,0.00331279,1917.9,1917.8,27.82948036]
[1688330435635,0.00331279,1917.9,1917.8,27.40317532]
[1688330436860,0.00331279,1917.9,1917.8,28.30925072]
[1688330437427,0.00331279,1917.9,1917.8,29.66833942]
[1688330449380,0.00331279,1917.9,1917.8,30.21540298]
[1688330456371,0.00331279,1917.9,1917.8,26.48496084]
[1688330456576,0.00331279,1917.9,1917.8,27.0320244]
[1688330457457,0.00331279,1917.9,1917.8,28.25655618]
[1688330457659,0.05344531,1918.0,1917.8,28.25655618]
[1688330457890,0.05344531,1918.0,1917.9,7.6197289]
[1688330458074,0.05344531,1918.0,1917.9,23.88306768]
[1688330458277,0.05344531,1918.0,1917.9,25.51662006]
[1688330458992,0.05344531,1918.0,1917.9,25.5231977]
[1688330459190,0.05344531,1918.0,1917.9,25.51662006]
[1688330459386,0.05344531,1918.0,1917.9,26.06832459]
[1688330459687,0.05344531,1918.0,1917.9,26.06258276]
[1688330460003,0.05344531,1918.0,1917.9,30.24753762]
[1688330460189,0.05344531,1918.0,1917.9,30.24198742]
[1688330460803,0.05817047,1918.0,1917.9,30.24198742]
[1688330461422,0.05817047,1918.0,1917.9,30.24722497]
[1688330461729,0.05817047,1918.0,1917.9,30.24198742]
[1688330463196,0.05817047,1918.0,1917.9,17.20691742]
[1688330463425,0.05817047,1918.0,1917.9,17.83358994]
[1688330463625,0.05817047,1918.0,1917.9,21.79968864]
[1688330463813,0.05817047,1918.0,1917.9,27.01371864]
[1688330466943,2.34021147,1918.2,1917.9,13.97864864]
[1688330467146,2.34021147,1918.2,1918.1,13.03372]
[1688330467305,0.02901147,1918.2,1918.1,16.20124184]
[1688330467935,0.03357308,1918.2,1918.1,21.20124184]
[1688330470832,0.03357308,1918.2,1918.1,21.15124184]
[1688330490523,0.03357308,1918.2,1918.1,20.72124184]
[1688330491823,0.03357308,1918.2,1918.1,21.20124184]
[1688330497805,0.03357308,1918.2,1918.1,5.48]
[1688330498004,0.98557308,1918.2,1918.1,5.48]
[1688330498638,0.98557308,1918.2,1918.1,5.0]
[1688330499136,0.98557308,1918.2,1918.1,10.42698]
[1688330500205,0.98557308,1918.2,1918.1,5.21349]
[1688330501443,1.61542539,1918.2,1918.1,5.21349]
[1688330504927,0.98557308,1918.2,1918.1,5.21349]
[1688330505131,0.98557308,1918.2,1918.1,15.72124184]
[1688330505132,0.03357308,1918.2,1918.1,15.72124184]
[1688330505459,0.03357308,1918.2,1918.1,16.20124184]
[1688330505954,0.03357308,1918.2,1918.1,21.20124184]
[1688330535297,0.03357308,1918.2,1918.1,18.59450184]
[1688330537171,0.03357308,1918.2,1918.1,21.20124184]
[1688330553839,0.02962225,1918.2,1918.1,21.20124184]
[1688330566311,0.02962225,1918.2,1918.1,13.38101184]
[1688330566513,0.02962225,1918.2,1918.1,8.16752184]
[1688330566913,0.02962225,1918.2,1918.1,3.16752184]
[1688330571453,0.02962225,1918.2,1918.1,8.38101184]
[1688330571827,0.02962225,1918.2,1918.1,3.16752184]
[1688330572824,0.02962225,1918.2,1918.1,8.38101184]
[1688330573263,0.02962225,1918.2,1918.1,3.16752184]
[1688330578946,0.02962225,1918.2,1918.1,8.38101184]
[1688330582474,0.02962225,1918.2,1918.1,13.59450184]
[1688330583849,0.02962225,1918.2,1918.1,8.38101184]
[1688330585367,0.02962225,1918.2,1918.1,13.59450184]
[1688330588052,0.02962225,1918.2,1918.1,8.38101184]
[1688330588881,0.02962225,1918.2,1918.1,3.16752184]
[1688330589580,0.02962225,1918.2,1918.1,13.59450184]
[1688330591047,0.02962225,1918.2,1918.1,8.38101184]
[1688330595224,0.02962225,1918.2,1918.1,13.59450184]
[1688330595927,0.02962225,1918.2,1918.1,18.59450184]
[1688330604429,0.02962225,1918.2,1918.1,21.20124184]
[1688330604805,0.02962225,1918.2,1918.1,23.58204902]
[1688330619458,0.02962225,1918.3,1918.1,23.58204902]
[1688330619660,0.02962225,1918.3,1918.2,3.16752184]
[1688330619870,0.02962225,1918.3,1918.2,16.20057184]
[1688330620877,0.02962225,1918.3,1918.1,10.2134]
[1688330621065,0.02962225,1918.3,1918.1,12.90092184]
[1688330621260,0.56385348,1918.3,1918.1,12.90092184]
[1688330621847,0.56385348,1918.3,1918.1,7.90092184]
[1688330622050,0.56385348,1918.3,1918.1,13.11441184]
[1688330622963,0.46385348,1918.3,1918.1,13.11441184]
[1688330623877,0.00428968,1918.2,1918.1,13.11441184]
[1688330624046,0.00428968,1918.2,1918.1,13.59441184]
[1688330624881,7.61869,1918.4,1918.1,13.59441184]
[1688330625055,0.761869,1918.3,1918.1,13.59441184]
[1688330625387,7.51869,1918.4,1918.1,13.59441184]
[1688330625875,0.00429877,1918.3,1918.1,21.20115184]
[1688330626055,0.00429877,1918.3,1918.1,21.21767416]
[1688330626839,2.306,1918.4,1918.1,21.21767416]
[1688330627880,0.00429877,1918.3,1918.1,21.21767416]
[1688330628853,2.306,1918.4,1918.2,2.68752184]
[1688330629059,2.306,1918.4,1918.3,10.42588]
[1688330629255,0.51844134,1918.5,1918.3,10.37588]
[1688330629847,0.00429647,1918.4,1918.3,10.37588]
[1688330631083,0.00429647,1918.4,1918.3,12.98235]
[1688330640495,0.00429647,1918.4,1918.3,10.37588]
[1688330656996,0.00429647,1918.4,1918.3,5.16294]
[1688330660548,0.00429647,1918.4,1918.3,5.21294]
[1688330661636,0.00429647,1918.4,1918.2,7.90058184]
[1688330661938,0.00429647,1918.4,1918.2,13.11367184]
[1688330663511,0.00429647,1918.4,1918.2,15.72028184]
[1688330667643,0.00429647,1918.4,1918.2,18.00589226]
[1688330668312,0.00429647,1918.4,1918.2,15.72028184]
[1688330679930,0.00429647,1918.4,1918.3,13.51235]
[1688330680126,0.00429647,1918.4,1918.3,16.19987184]
[1688330701874,0.00429647,1918.4,1918.3,21.19987184]
[1688330715132,0.00429647,1918.4,1918.3,27.37381184]
[1688330715439,0.00429647,1918.4,1918.3,30.62528617]
[1688330715592,0.00429647,1918.4,1918.3,35.90378439]
[1688330715914,0.00429647,1918.4,1918.3,36.1715241]
[1688330716411,0.00429647,1918.4,1918.3,34.81276735]
[1688330716805,0.00429647,1918.4,1918.3,34.54502764]
[1688330717986,0.00429647,1918.4,1918.3,34.81276735]
[1688330718182,0.00429647,1918.4,1918.3,33.90690449]
[1688330719632,0.00429647,1918.4,1918.3,33.63916478]
[1688330720431,0.00429647,1918.4,1918.3,33.90690449]
[1688330724338,0.00429647,1918.4,1918.3,34.32763659]
[1688330737664,0.1,1919.1,1918.9,7.98899999]
[1688330737962,0.1,1919.2,1919.0,0.01387861]
[1688330738170,0.1,1919.7,1919.2,7.489]
[1688330738349,0.1,1919.7,1919.6,2.68752184]
[1688330738567,0.1,1919.7,1919.6,28.23490402]
[1688330738740,0.1,1920.2,1919.6,28.23490402]
[1688330739061,0.1,1920.2,1919.7,17.15625045]
[1688330739446,0.1,1920.2,1919.8,5.68752184]
[1688330739763,1.059,1920.2,1919.8,19.20357045]
[1688330740062,1.059,1920.2,1919.8,16.20357045]
[1688330740263,1.107,1920.0,1919.8,16.20357045]
[1688330740964,0.10455999,1919.9,1919.8,16.20357045]
[1688330742178,0.10455999,1919.9,1919.8,21.20357045]
[1688330742949,0.10455999,1919.9,1919.8,16.20357045]
[1688330743966,0.10455999,1919.9,1919.8,21.20357045]
[1688330745865,0.10455999,1919.9,1919.8,16.20357045]
[1688330750947,0.10455999,1919.9,1919.8,21.20357045]
[1688330757565,0.10455999,1919.9,1919.8,31.7932475]
[1688330758678,0.10455999,1919.9,1919.8,32.7532475]
[1688330758851,0.00457229,1919.9,1919.8,32.7532475]
[1688330759070,0.00457229,1919.9,1919.8,31.7932475]
[1688330760196,0.00457229,1919.9,1919.8,31.80975519]
[1688330761202,0.1,1920.2,1919.8,38.1654949]
[1688330761362,0.1,1920.2,1920.1,2.68752184]
[1688330761699,0.1,1920.2,1920.1,23.51976184]
[1688330761900,0.1,1920.2,1920.1,29.48876184]
[1688330762196,0.1,1920.2,1920.1,32.48876184]
[1688330762766,0.1,1920.2,1920.1,36.57776184]
[1688330763104,0.10406828,1920.2,1920.1,45.0105255]
[1688330763816,0.1,1920.4,1920.2,0.01387861]
[1688330763969,0.1,1920.4,1920.3,40.38158184]
[1688330764169,0.1,1920.4,1920.3,43.39546045]
[1688330764369,0.1,1920.4,1920.3,47.27520016]
[1688330764612,0.1,1920.4,1920.3,50.69788921]
[1688330765114,30.56,1921.1,1920.4,0.01650254]
[1688330765413,1.3329355,1921.3,1921.1,2.0]
[1688330765729,1.3329355,1921.3,1921.2,16.1967175]
[1688330765933,0.0485627,1921.6,1921.5,8.17652184]
[1688330766074,0.0485627,1921.6,1921.5,18.78030184]
[1688330766273,0.0485627,1921.6,1921.5,25.13476002]
[1688330766604,0.0485627,1921.6,1921.5,25.1012531]